Cogmind - Beta 13 @@@ ROGUE MODE // 2024.07.24 @ 22:01:32 Player: Johnny5001 Result: Destroyed by D-53 Grenadier with Mini Grenade Launcher Performance ------------- Evolutions (0) 0 Regions Visited (3) 600 Robots Destroyed (27) 135 Value Destroyed (845) 845 Prototype IDs (17) 340 Alien Tech Used (0) 0 Bonus (55) 55 TOTAL SCORE: 1975 Bonus ------- High Alert Combat Kills 55 Cogmind --------- Core Integrity 0/250 Matter 267/300 Energy 249/249 System Corruption 0% Temperature Warm (160) Movement Treading (197) Ox1 Location -9/Recycling Parts ------- > --- POWER (1) -------- Ion-Engine Engine > --- PROPULSION (2) --- Treaded Armored Exoskeleton > --- UTILITY (2) ------ Armored Scrap Engine > --- WEAPON (2) ------- Ballistic Battle Construct/G Charged Construct/C > --- INVENTORY (5) ---- Medium Storage Unit Authchip [Power] Authchip [Device] Authchip [Processor] Subdweller Shrapnel Launcher Peak State ------------ > --- POWER ------------ Ion Engine > --- PROPULSION ------- Spiked Treads Spiked Treads > --- UTILITY ---------- Scrap Engine > --- WEAPON ----------- Powered Cannon > --- INVENTORY -------- Subdweller Power Source Subdweller Power Source Cargo Legs Subdweller Shrapnel Launcher [Rating: 37] Favorites ----------- Power Ion Engine Engine Ion Engine Propulsion Aluminum Leg Treads Light Treads Leg Aluminum Leg Utility Small Storage Unit Device Subdweller Optics Storage Small Storage Unit Weapon Powered Cannon Energy Gun EM Pulse Gun Energy Cannon Powered Cannon Ballistic Gun Battle Rifle Build | -11 -10 -10 -9 ------- Run | Yrd Mat Sub Rec Slots Evolved . | . . . . Power . | . . . . Propulsion . | . . . . Utility . | . . . . Weapon . | . . . . Parts Attached 19 | . 2 16 1 Power 1 | . . 1 . Engine 1 | . . 1 . Core . | . . . . Reactor . | . . . . Propulsion 6 | . 2 4 . Treads 4 | . 2 2 . Leg 2 | . . 2 . Wheel . | . . . . Hover . | . . . . Flight . | . . . . Utility 3 | . . 2 1 Device 3 | . . 2 1 Storage . | . . . . Processor . | . . . . Hackware . | . . . . Protection . | . . . . Artifact . | . . . . Weapon 9 | . . 9 . Energy Gun 1 | . . 1 . Energy Cannon 2 | . . 2 . Ballistic Gun 6 | . . 6 . Ballistic Cannon . | . . . . Launcher . | . . . . Special Weapon . | . . . . Impact Weapon . | . . . . Slashing Weapon . | . . . . Piercing Weapon . | . . . . Special Melee Weapon . | . . . . Unidentified Prototypes . | . . . . Parts Lost 6 | . . 5 1 Power 1 | . . 1 . Propulsion 3 | . . 2 1 Utility . | . . . . Weapon 2 | . . 2 . Highest Loss Streak 4 | . . 4 1 To Critical Strikes . | . . . . Average Slot Usage (%) 78 | . 85 80 64 Engine 12 | . 14 12 12 Treads 9 | . 26 9 2 Leg 14 | . 1 16 9 Device 11 | . . 12 13 Storage 10 | . 14 12 . Energy Cannon 9 | . . 9 13 Ballistic Gun 8 | . 28 6 10 Naked Turns . | . . . . Heaviest Build 24 | 13 13 24 14 Greatest Support 40 | 20 40 40 22 Greatest Overweight (x) 3 | . . 1 3 Average Overweight (x) . | . . . . Largest Inventory Capacity 8 | . 8 8 8 Average Capacity 7 | . 8 8 5 Most Carried 8 | . 6 8 8 Average Carried 7 | . 6 7 4 Final Capacity 8 | 8 8 8 5 Final Carried 8 | 6 6 8 5 Scrap Engine Consumption 29 | . . . 29 Constructs Created 4 | . . . 4 Constructs Modified 6 | . . . 6 Class Distribution -------------------- 87% | Mutant 12% | Construct Dominant Class ---------------- Mutant | -10/Materials Mutant | -10/Subcaves Construct | -9/Recycling Resources | -11 -10 -10 -9 ----------- Run | Yrd Mat Sub Rec Matter Collected 517 | 175 . 300 42 Remotely . | . . . . Salvage Created 1816 | . . 655 1161 Parts 90 | . . 43 47 Haulers Intercepted . | . . . . Recyclers Shooed 4 | . . . 4 Parts Field Recycled . | . . . . Retrieved Matter . | . . . . Parts Self-Destructed 12 | . . 12 . Prevented . | . . . . Kills | -11 -10 -10 -9 ------- Run | Yrd Mat Sub Rec Combat Hostiles Destroyed 21 | . . 16 5 Guns 9 | . . 8 1 Cannons 11 | . . 7 4 Classes Destroyed 6 | . . 4 2 Recycler 5 | . . . 5 Turret 1 | . . 1 . Swarmer 3 | . . 3 . Sentry 5 | . . . 5 Cobbler 1 | . . 1 . Subdweller 13 | . . 13 . Best Kill Streak 3 | . . 3 3 Combat Bots Only 3 | . . 3 2 Max Kills in Single Turn 1 | . . 1 1 Gunslinging . | . . . . Exploded . | . . . . Melee . | . . . . Uniques/NPCs Destroyed . | . . . . Combat | -11 -10 -10 -9 -------- Run | Yrd Mat Sub Rec Hostile Shots Fired 114 | . . 87 27 Missed 31 | . . 24 7 Damage Taken 1690 | . . 1083 607 Core 263 | . . 133 130 Absorbed by Shields . | . . . . Regen/Repaired (Parts) 14 | . . . 14 Core Remaining (%) 100 | 100 . . . Volleys Fired 127 | . . 84 43 Largest 2 | . . 2 2 Hottest 120 | . . 120 80 Shots Fired 190 | . . 112 78 Gun 79 | . . 44 35 Cannon 111 | . . 68 43 Launcher . | . . . . Special . | . . . . Kinetic 78 | . . 43 35 Thermal 68 | . . 68 . Explosive . | . . . . Electromagnetic 44 | . . 1 43 Robot Hit Streak 34 | . . 34 10 Robot Miss Streak 4 | . . 2 4 Penetration Max . | . . . . Secondary Targets 1 | . . 1 . Max Gunslinging Chain 1 | . . 1 . Shots Hit Robots 104 | . . 59 45 Core Hits 50 | . . 24 26 Critical Kills 2 | . . 1 1 Critical Parts Destroyed 1 | . . 1 . Critical Strikes 3 | . . 2 1 Meltdown 1 | . . 1 . Destroy 2 | . . 1 1 Melee Attacks . | . . . . Impact . | . . . . Slashing . | . . . . Piercing . | . . . . Sneak Attacks . | . . . . Combat Hostiles . | . . . . Follow-up Attacks . | . . . . Damage Inflicted 2576 | . . 1789 787 Guns 897 | . . 528 369 Cannons 1679 | . . 1261 418 Explosions . | . . . . Melee . | . . . . Ramming . | . . . . Kinetic 897 | . . 528 369 Thermal 1261 | . . 1261 . Explosive . | . . . . Electromagnetic 418 | . . . 418 Impact . | . . . . Slashing . | . . . . Piercing . | . . . . Highest Corruption . | . . . . Average Corruption . | . . . . Corruption Purged . | . . . . Corruption Blocked . | . . . . Overload Shots 3 | . . 3 . Overflow Damage 10 | . . 10 . Projectiles 10 | . . 10 . Explosions . | . . . . Melee . | . . . . Knockbacks . | . . . . Impact . | . . . . Kinetic . | . . . . Secondary . | . . . . Self-Inflicted Damage . | . . . . Shots . | . . . . Rammed . | . . . . Targets Rammed . | . . . . Kicked . | . . . . Crushed . | . . . . Highest Temperature 160 | . . 126 160 Average Temperature 50 | . . 28 54 Received Heat Transfer 312 | . . 249 63 Siege Activations . | . . . . Robots Corrupted . | . . . . Combat Hostiles . | . . . . Parts Fried . | . . . . Impact Corruptions . | . . . . Robots Melted 1 | . . 1 . Combat Hostiles 1 | . . 1 . Parts Melted 2 | . . 2 . Heat Transferred 481 | . . 481 . Parts Sabotaged . | . . . . Parts Stolen . | . . . . Parts Stripped . | . . . . Power Chain Reactions . | . . . . Alert | -11 -10 -10 -9 ------- Run | Yrd Mat Sub Rec Peak Influence 627 | . . . 627 Initial 486 | . . . 486 Average 344 | . . . 526 Maximum Alert Level 2 | . . . 2 Low Security (%) 34 | . 100 . . Level 1 . | . . . . Level 2 65 | . . . 100 Level 3 . | . . . . Level 4 . | . . . . Level 5 . | . . . . High Security . | . . . . Max Security . | . . . . Squads Dispatched . | . . . . Investigation . | . . . . Extermination . | . . . . Reinforcement . | . . . . Assault . | . . . . Garrison . | . . . . Intercept . | . . . . Searches Triggered . | . . . . Construction Impeded . | . . . . Haulers Reinforced . | . . . . Active Scanning Responses . | . . . . Cargo Convoy Interrupts . | . . . . Stealth | -11 -10 -10 -9 --------- Run | Yrd Mat Sub Rec Distress Signals . | . . . . Communications Jammed . | . . . . Distress Signals . | . . . . Times Spotted 88 | . . 83 5 Peak Tracking Total 6 | . . 6 2 Tactical Retreats 9 | . . 9 . Traps | -11 -10 -10 -9 ------- Run | Yrd Mat Sub Rec Traps Triggered . | . . . . Indirectly . | . . . . Trap Hack Attempts . | . . . . Triggered . | . . . . Disarmed . | . . . . Reprogrammed . | . . . . Reused 1 | . . 1 . Traps Extracted . | . . . . Installed 1 | . . 1 . Triggered 1 | . . 1 . Most Traps Carried 1 | . . 1 . Machines | -11 -10 -10 -9 ---------- Run | Yrd Mat Sub Rec Machines Disabled 2 | . . 1 1 Max in Single Turn 1 | . . 1 1 Machines Repaired . | . . . . Machines Dismantled . | . . . . Machines Sabotaged . | . . . . Overloaded Fab Kills . | . . . . Hacking | -11 -10 -10 -9 --------- Run | Yrd Mat Sub Rec Machines Accessed 12 | . . 2 10 Terminals 5 | . . . 5 Fabricators . | . . . . Repair Stations . | . . . . Recycling Units 5 | . . . 5 Scanalyzers . | . . . . Garrison Access . | . . . . Total Hacks 19 | . . 2 17 Successful 14 | . . 2 12 Failed 5 | . . . 5 Catastrophic . | . . . . Database Lockouts . | . . . . Manual 9 | . . . 9 Terminals 11 | . . . 11 Fabricators . | . . . . Repair Stations . | . . . . Recycling Units 6 | . . . 6 Scanalyzers . | . . . . Garrison Access . | . . . . Terminal Hacks 7 | . . 2 5 Record 1 | . . 1 . Part Schematic 2 | . . . 2 Prototype ID Bank 1 | . . . 1 Terminal Index 1 | . . . 1 Zone Layout 1 | . . . 1 Derelict Proto ID Bank 1 | . . 1 . Fabricator Hacks . | . . . . Repair Station Hacks . | . . . . Recycling Unit Hacks 1 | . . . 1 Retrieve Components 1 | . . . 1 Scanalyzer . | . . . . Garrison Access Hacks . | . . . . Unauthorized Hacks 6 | . . . 6 Terminals 1 | . . . 1 Botnet 1 | . . . 1 Fabricators . | . . . . Repair Stations . | . . . . Recycling Units 5 | . . . 5 Tunnel 5 | . . . 5 Scanalyzers . | . . . . Garrison Access . | . . . . Data Cores Recovered . | . . . . Used . | . . . . Hacking Detections 4 | . . . 4 Full Trace Events . | . . . . Feedback Events . | . . . . Feedback Blocked . | . . . . Robot Schematics Acquired . | . . . . Robots Built . | . . . . Authchips . | . . . . Time . | . . . . Total Robot Build Rating . | . . . . Part Schematics Acquired 2 | . . . 2 Parts Built . | . . . . Authchips . | . . . . Time . | . . . . Total Part Build Rating . | . . . . Parts Repaired . | . . . . Time . | . . . . Parts Recycled . | . . . . Recycled Matter . | . . . . Retrieved Matter . | . . . . Retrieved Components 4 | . . . 4 Parts Scanalyzed . | . . . . Part Schematics Acquired . | . . . . Parts Damaged . | . . . . Bothacking | -11 -10 -10 -9 ------------ Run | Yrd Mat Sub Rec Used RIF Installer . | . . . . Robots Hacked . | . . . . Non-combat . | . . . . Combat . | . . . . Robot Hacks Applied . | . . . . Relay Couplers Released . | . . . . Fabnet Peak Effective % . | . . . . Robots Rewired . | . . . . Allies Hacked . | . . . . Hacks Repelled . | . . . . Allies | -11 -10 -10 -9 -------- Run | Yrd Mat Sub Rec Total Allies . | . . . . Largest Group . | . . . . Highest-Rated Group . | . . . . Highest-Rated Ally . | . . . . Total Orders . | . . . . Ally Attacks . | . . . . Total Damage . | . . . . Kills . | . . . . Allies Corrupted . | . . . . Allies Melted . | . . . . Intel | -11 -10 -10 -9 ------- Run | Yrd Mat Sub Rec Robot Analysis Total . | . . . . Derelict Logs Recovered 2 | . . 2 . Drone Launches . | . . . . Drone Recoveries . | . . . . Exploration | -11 -10 -10 -9 ------------- Run | Yrd Mat Sub Rec Turns Passed 6648 | . 478 5264 906 Spaces Moved 2772 | 1 67 2307 397 Core 19 | . . . 19 Treads 1211 | . 50 1073 88 Legs 1526 | 1 17 1234 274 Wheels 16 | . . . 16 Hover . | . . . . Flight . | . . . . Fastest Speed 120 | 120 120 120 150 Average Speed 180 | 120 149 179 191 Slowest Speed 260 | 120 160 260 250 Overloaded Moves . | . . . . Propulsion Burnouts . | . . . . Robots Hopped . | . . . . Cave-ins Triggered . | . . . . Exploration Rate (%) 47 | 2 12 95 80 Regions Visited 3 Branch Regions 2 Pre-discovered Areas 5 | . . . 5 Known Exits Taken . | . . . . Unknown Exits Taken 3 | 1 1 1 . Scrap Searched 9 | . . 9 . Spaces Dug 20 | . . 20 . Terrain Destroyed 21 | . . 21 . Melee . | . . . . Projectile 21 | . . 21 . AOE . | . . . . Terrain Rammed . | . . . . Walls Destroyed . | . . . . Machines Disabled . | . . . . Actions | -11 -10 -10 -9 --------- Run | Yrd Mat Sub Rec Total 4245 | . 444 3329 472 Wait 1286 | . 376 896 14 Move 2769 | . 66 2306 397 Hop . | . . . . Pick Up 17 | . . 11 6 Fast Attach 7 | . . 6 1 Attach 6 | . . 6 . Detach 2 | . . 2 . Swap 6 | . 2 4 . Drop 24 | . . 13 11 Fire 127 | . . 84 43 Melee . | . . . . Ram . | . . . . Kick . | . . . . Crush . | . . . . Escape Stasis . | . . . . Rewire . | . . . . Trap 1 | . . 1 . Miscellaneous . | . . . . Route ------- -11/Scrapyard -10/Materials -10/Subcaves (discovered 3 exits: [*Mat x2] / *Rec) -9/Recycling (discovered 1 exit: [*Fac]) History --------- Turn | Location | Event 1 | -11/Scrapyard | Discovered new exit (range 0) 1 | -11/Scrapyard | Entered Materials 310 | -10/Materials | Build established: Mutant 457 | -10/Materials | Discovered new exit (range 5) 479 | -10/Materials | Entered Subcaves 541 | -10/Subcaves | Visited 4L-MR0's lab 723 | -10/Subcaves | A swath of the cavern ceiling suddenly collapsed 1126 | -10/Subcaves | Ambushed by Subdweller buried in earth 1126 | -10/Subcaves | Ambushed by Subdweller buried in earth 1246 | -10/Subcaves | Ambushed by Subdwellers from Twisted Machinery 1303 | -10/Subcaves | Shifting Twisted Machinery released Sub. Optics 1464 | -10/Subcaves | Found Cargo Legs 1591 | -10/Subcaves | Discovered new exit (range 11) 1629 | -10/Subcaves | Learned Materials terminal intel 1786 | -10/Subcaves | Discovered new exit (range 5) 1789 | -10/Subcaves | A Subdweller sparked back to life 1789 | -10/Subcaves | A Subdweller sparked back to life 1832 | -10/Subcaves | Found Powered Cannon 1833 | -10/Subcaves | Attached Powered Cannon, gained temporary slot: Power 1852 | -10/Subcaves | Lost 4 parts (1p2n1w) 1930 | -10/Subcaves | Shifting Twisted Machinery released Sub. Beam Cannon 2570 | -10/Subcaves | A swath of the cavern ceiling suddenly collapsed 3092 | -10/Subcaves | Shifting Twisted Machinery released Barrage Gun 3092 | -10/Subcaves | Shifting Twisted Machinery released Flamer 3244 | -10/Subcaves | Discovered new exit (range 16) 3294 | -10/Subcaves | Visited Clippyterm 3300 | -10/Subcaves | Learned Factory stockpile data 3493 | -10/Subcaves | Shifting Twisted Machinery released Sub. Laser 3935 | -10/Subcaves | Core integrity fell below 50% 5533 | -10/Subcaves | Shifting Twisted Machinery released Sub. Machine Gun 5743 | -10/Subcaves | Entered Recycling 5744 | -9/Recycling | Found Scrap Engine 6146 | -9/Recycling | Build established: Construct 6588 | -9/Recycling | Discovered new exit (range 15) 6646 | -9/Recycling | Core integrity fell below 20% 6649 | -9/Recycling | Destroyed by D-53 Grenadier with Mini Grenade Launcher Last Messages --------------- 06629_ I-25 Savior destroyed. 06629_ T-07 Excavator destroyed. 06629_ G-34 Mercenary destroyed. 06629_ S-10 Pest destroyed. 06631_ A-02 Transporter destroyed. 06632_ R-06 Scavenger collects Flight Unit. 06633_ R-06 Scavenger destroyed. 06633_ R-06 Scavenger collects Com. Wheel. 06635_ R-06 Scavenger destroyed. 06635_ Y-45 Defender destroyed. 06641_ D-53 Grenadier destroyed. 06644_ The unstable cave ceiling collapses. 06644_ Terminal disabled. 06644_ R-06 Scavenger collects Sml. Storage Unit. 06645_ Treaded Armored Exoskeleton destroyed. 06645_ Treaded Armored Exoskeleton core remains intact and functional. 06645_ R-06 Scavenger destroyed. 06646_ R-06 Scavenger collects Com. Wheel. Map ----- +----------------------------------------------------+ | ?????? #???????????????????????????????????????? | | ?????? #???????????????????????????????????????? | | ??? #???????????????????????????????????????? | | ??? "???????????????????????????????????????? | | ?????? ????????????????????????????????????????? | | ?????????????????????????????????????????????????? | | ?????????????????????????????????????????????????? | | ?????????????????????????????????????????????????? | | ?????????????????????????????????????????????????? | | ?????????????????????????????????????????????????? | | ?????????????????????????????????????????????????? | | ?????????????????????????????????????????????????? | | ????###???????????###????????????????????????????? | | #####%##??#########%#######??????????????????????? | | *#??# = #??????????????????????? | | #??# #??????????????????????? | | #??# ##?????????????????????? | | #??# %#??####???????????????? | | #??# ##?"""""#?"????????????? | | #?###############+####""T" #"Y"##?????????? | | #?# != * #????????? | | #+######## /% %= < #????????? | | r %! #????????? | | ####+######+######### * ###"Y"###??????????? | | ???# ## d #?????????????????? | | ???# ## @ #?????????????????? | | ???# ## i#?????????????????? | | ???# ## [%#?????????????????? | | ??## ### ! #?????????????????? | | ??#% #?#k [#?????????????????? | | ??## #?#s s k #?????????????????? | | ???# #?# !! h #?????????????????? | | ???# #?###########?????????????????? | | ???# != #?????????????????????????????? | | ???########%########?????????????????????????????? | | ???????????##????????????????????????????????????? | | ?????????????????????????????????????????????????? | | | | | | | | | | | | | | | | | | | | | | | | | | | +----------------------------------------------------+ Best States ------------- Heat Dissipation 25 Energy Generation 10 Energy Capacity 250 Matter Stores 300 Matter Capacity 300 Sight Range 16 Terrain Scan Density 10 Evasion (%) 55 Recoil Reduction 2 Authchip Count 3 Item Schematics ----------------- Hrd. Heavy Armor Plating | -9/Recycling | Hacked Imp. Carbon-fiber Leg | -9/Recycling | Hacked Robot Schematics ------------------ None Fabricated ------------ Nothing Alien Tech Used ----------------- None Achievements -------------- None Challenges ------------ None Game ------ Seed NavigationCoordinationJammer Manual? 0 Play Time 00:36:41 Cumulative 61.5 hours Start 2024.07.24 @ 20:39:43 End 2024.07.24 @ 22:01:32 Sessions 1 Manual Loads 0 Difficulty Rogue Special Mode None Game No. 38 Rogue 38 Adventurer 0 Explorer 0 Win Type - Total 5 Types 4/0/0/1/0/0/0/0/0 Lore% 48 Gallery% 51 Achievement% 47 Wizard Run 0 Options --------- Layout 1 ASCII 0 Keyboard 0 Movement Mouse Keybinds 0 Fullscreen 1 Font 24/Smallcaps Map View 50x35 Zoom Use 0% Tactical HUD 1 Map Filters NONE Filters NONE Steam 0 RUN: 26ab255a-2b14-45e9-a885-8c548526de25